bitfinex-derivatives/quotes_ETHF0:USTF0_20250709
["timestamp","ask_amount","ask_price","bid_price","bid_amount"]
[1752085335324,3.62042,2717.3,2717.1,0.73595]
[1752085335525,3.62042,2717.3,2717.1,3.94375]
[1752085335822,0.73594,2717.2,2717.1,3.2078]
[1752085336129,0.73601,2717.0,2716.8,0.73604]
[1752085336319,3.59466,2717.2,2716.9,0.73602]
[1752085336517,2.8587,2717.2,2716.7,3.2078]
[1752085336923,0.73604,2716.9,2716.7,3.2078]
[1752085337225,0.73596,2717.2,2716.9,0.736]
[1752085337426,0.73601,2717.0,2716.7,3.2078]
[1752085337625,2.7504,2717.2,2716.4,3.2078]
[1752085337819,0.73608,2716.7,2716.5,0.73612]
[1752085338024,0.73607,2716.8,2716.5,0.73612]
[1752085338226,3.7049,2716.9,2716.4,3.94394]
[1752085338425,2.7504,2716.8,2716.5,0.73611]
[1752085338625,0.73604,2716.9,2716.6,0.73609]
[1752085338830,0.73605,2716.8,2716.4,3.2078]
[1752085339023,5.54478,2717.2,2716.7,3.2078]
[1752085339024,3.7049,2717.2,2716.7,3.2078]
[1752085339332,0.73604,2716.9,2716.6,0.73609]
[1752085339531,40.8,2716.9,2716.5,0.73612]
[1752085339730,40.8,2716.9,2716.4,3.94394]
[1752085339934,0.73601,2717.0,2716.7,0.73607]
[1752085340224,0.73599,2717.1,2716.7,0.73607]
[1752085340626,0.736,2717.0,2716.7,0.73607]
[1752085340828,3.54999,2717.1,2716.8,0.73605]
[1752085341029,3.54999,2717.1,2716.8,0.73603]
[1752085341225,41.53596,2717.2,2716.9,0.73602]
[1752085341431,40.8,2717.2,2717.0,0.73599]
[1752085341629,41.53594,2717.2,2717.0,0.73599]
[1752085342231,40.8,2717.2,2716.7,6.14741274]
[1752085342432,0.73599,2717.1,2716.9,0.73602]
[1752085342633,0.73601,2717.0,2716.8,0.73605]
[1752085342831,0.73598,2717.1,2716.9,0.73601]
[1752085343231,41.53596,2717.2,2716.9,0.73601]
[1752085343432,41.53596,2717.2,2717.0,0.73599]
[1752085343634,0.73598,2717.1,2716.9,0.73602]
[1752085344031,41.53596,2717.2,2717.0,0.73598]
[1752085344231,2.814,2717.4,2717.1,0.01277862]
[1752085344431,2.7247,2717.5,2717.1,0.01277862]
[1752085344629,3.46058,2717.5,2717.2,0.73593]
[1752085344833,0.7359,2717.4,2717.2,0.73593]
[1752085345137,3.46058,2717.5,2717.3,0.73592]
[1752085345339,3.46058,2717.5,2717.4,0.01277862]
[1752085345634,4.41508,2717.5,2717.4,0.01277862]
[1752085346231,0.73594,2717.2,2717.1,0.0055269]
[1752085346430,1.69044,2717.2,2717.1,0.01816829]
[1752085346934,0.73607,2716.8,2716.4,3.2078]
[1752085347128,3.2078,2717.0,2716.8,0.73604]
[1752085347327,3.0062,2716.9,2716.8,0.73604]
[1752085347524,3.2078,2717.0,2716.9,0.73603]
[1752085347728,0.9545,2717.3,2716.7,1.84018]
[1752085347930,3.0062,2717.2,2717.1,0.73596]
[1752085349032,3.0062,2717.2,2717.1,0.73597]
[1752085350036,3.9607,2717.2,2717.1,0.73597]
[1752085350242,3.9607,2717.2,2717.0,0.73598]
[1752085350437,0.0055269,2717.4,2716.9,1.84005]
[1752085350638,0.0055269,2717.4,2717.2,0.73593]
[1752085350840,3.6837269,2717.4,2717.2,0.73593]
[1752085351138,2.7292269,2717.4,2716.9,1.84007]
[1752085351432,2.7292269,2717.4,2717.3,0.73592]
[1752085352434,0.0055269,2717.4,2717.3,0.73592]
[1752085352829,2.8441269,2717.4,2717.3,0.73592]
[1752085353033,3.30541893,2717.8,2717.3,0.73592]
[1752085353034,4.1623,2718.0,2717.4,1.83968]
[1752085353234,2.7169,2717.9,2717.8,0.73578]
[1752085353433,47.31,2717.9,2717.2,5.04765]
[1752085353638,3.94369,2717.4,2717.1,0.7414769]
[1752085353937,6.51,2717.3,2717.2,0.73594]
[1752085354133,5.5555,2717.3,2717.2,0.73594]
[1752085354339,2.7169,2717.3,2717.2,0.73594]
[1752085356040,3.7931,2717.6,2717.1,0.0055269]
[1752085356041,2.8386,2717.6,2717.5,0.73586]
[1752085356836,3.9626,2717.8,2717.7,0.73581]
[1752085357238,6.7092,2717.8,2717.6,0.73581]
[1752085357439,9.917,2717.8,2717.7,0.73581]
[1752085357842,13.22241893,2717.8,2717.7,0.73581]
[1752085358044,9.917,2717.8,2717.7,0.73581]
[1752085358443,39.574,2717.8,2717.7,0.73581]
[1752085359240,6.2159,2717.8,2717.7,0.73581]
[1752085359544,3.0081,2717.8,2717.7,0.73581]
[1752085360144,3.6216,2717.8,2717.7,1.36111]
[1752085360340,3.30541893,2718.2,2717.8,0.73578]
[1752085360641,4.38949283,2718.6,2718.5,0.73559]
[1752085360944,2.44709191,2719.4,2718.7,0.73554]
[1752085360945,43.6842,2718.8,2718.7,0.73554]
[1752085361138,43.6842,2718.8,2718.7,4.4751682]
[1752085361339,43.6842,2718.8,2718.7,4.47445922]
[1752085363136,4.1877,2719.5,2719.2,0.7354]
[1752085363343,4.1877,2719.5,2719.3,0.53111922]
[1752085363344,33.5752,2719.4,2719.3,0.53111922]
[1752085363538,33.5752,2719.4,2719.2,0.73539]
[1752085363539,36.2925,2719.4,2719.2,0.73539]
[1752085363740,3.42699191,2719.3,2717.9,3.2078]
[1752085363942,0.73561,2718.5,2718.2,0.73567]
[1752085364136,2.44709191,2718.6,2718.2,0.73567]
[1752085364137,46.6424,2718.4,2718.2,0.73566]
[1752085364340,1.71556,2718.3,2717.9,3.2078]
[1752085364542,3.57378,2718.2,2718.0,0.52557046]
[1752085364739,3.57378,2718.2,2718.1,0.52557046]
[1752085365140,8.57378,2718.2,2718.1,0.52557046]
[1752085365346,0.73582,2717.7,2717.5,3.2078]
[1752085365541,2.8381,2717.6,2717.4,0.73586]
[1752085365749,2.8381,2717.6,2717.4,0.73587]
[1752085366046,2.8381,2717.6,2717.2,3.2078]
[1752085366047,0.9799,2717.5,2717.2,3.94924663]
[1752085366244,2.8381,2717.4,2717.2,3.21331663]
[1752085366444,2.8381,2717.4,2717.2,3.94925663]
[1752085366640,2.7852,2717.6,2717.5,0.73586]
[1752085366847,0.9799,2717.9,2717.6,0.73584]
[1752085366848,29.551,2717.8,2717.6,0.73584]
[1752085367037,32.7578,2718.0,2717.5,5.65489191]
[1752085367239,32.7578,2718.0,2717.7,0.73579]
[1752085367440,0.9799,2718.2,2717.9,0.73575]
[1752085367642,1.71561,2718.1,2717.8,3.2078]
[1752085367845,0.73583,2717.7,2717.5,3.2078]
[1752085368046,6.42399191,2718.0,2717.2,0.74144663]
[1752085368047,4.71274,2717.6,2717.2,0.74144663]
[1752085368446,0.73587,2717.5,2717.2,0.74144663]
[1752085368648,4.71276,2717.6,2717.2,0.74144663]
[1752085368951,1.71581,2717.4,2717.2,0.00551663]
[1752085369250,2.997,2717.3,2717.2,0.00551663]
[1752085369748,2.7839,2717.5,2717.3,0.73591]
[1752085370148,0.73591,2717.4,2717.2,0.00551663]
[1752085370452,2.9922,2717.4,2717.2,0.00551663]
[1752085370645,2.7839,2717.5,2717.4,0.7359]
[1752085370847,4.92342,2718.1,2717.4,5.97403]
[1752085371046,3.2078,2718.1,2717.7,3.2078]
[1752085371246,3.2078,2718.1,2718.0,0.73574]
[1752085371448,3.2078,2718.1,2717.7,6.0564]
[1752085371750,2.7946,2718.3,2718.2,0.73568]
[1752085371950,41.53563,2718.4,2718.1,0.7357]
[1752085372743,0.9799,2718.3,2717.8,0.73577]
[1752085372943,0.73577,2717.9,2717.6,3.2078]
[1752085373142,0.9799,2717.8,2717.5,0.73586]
[1752085373347,0.9799,2717.7,2717.2,0.00551663]
[1752085373650,0.73592,2717.3,2717.2,0.00551663]
[1752085374050,1.71582,2717.3,2717.2,0.00551663]
[1752085374245,0.9799,2717.3,2717.2,0.00551663]
[1752085374655,40.8,2717.3,2717.2,0.74146663]
[1752085374848,40.8,2717.3,2717.2,0.00551663]
[1752085375049,40.8,2717.3,2717.2,0.74146663]
[1752085375656,0.7357,2718.2,2717.2,5.93201663]
[1752085375955,0.7357,2718.2,2718.0,0.73572]
[1752085376151,0.73571,2718.1,2717.9,3.94354]
[1752085376345,45.84707,2718.2,2717.4,3.2078]
[1752085376551,2.7536,2718.1,2717.8,0.73577]
[1752085376751,2.7536,2718.1,2717.9,0.73576]
[1752085376951,0.73574,2718.0,2717.8,0.73577]
[1752085377152,0.73577,2717.9,2717.7,3.9436]
[1752085377949,0.73579,2717.8,2717.7,3.2078]
[1752085378149,2.7536,2718.1,2717.5,5.33649191]
[1752085378350,0.73575,2718.0,2717.8,0.73579]
[1752085378552,0.73577,2717.9,2717.7,0.73581]
[1752085378852,0.73577,2717.9,2717.6,0.73584]
[1752085379052,0.73575,2718.0,2717.5,2.8894]
[1752085379253,0.73575,2718.0,2717.8,0.73578]
[1752085379449,0.73575,2718.0,2717.7,0.7358]
[1752085379645,0.73575,2718.0,2717.5,2.8894]
[1752085379849,0.73587,2717.5,2717.1,3.2078]
[1752085380049,0.73584,2717.6,2717.4,0.73589]
[1752085380254,2.7923,2717.9,2717.7,0.73579]
[1752085380450,2.7923,2717.9,2717.4,3.2078]
[1752085380651,0.73586,2717.6,2717.4,3.2078]
[1752085380952,0.73581,2717.8,2717.5,0.73586]
[1752085381145,0.73581,2717.8,2717.4,3.2078]
[1752085381146,0.73582,2717.7,2717.4,3.94369]
[1752085381350,2.7923,2717.8,2717.4,3.2078]
[1752085381549,2.7923,2717.8,2717.5,0.73585]
[1752085381750,2.7923,2717.8,2717.6,0.73584]
[1752085381950,30.15074,2718.0,2717.4,3.2078]
[1752085382353,32.2163,2718.0,2717.8,0.73578]
[1752085382546,32.95204,2718.0,2717.7,0.73581]
[1752085382752,6.50547619,2718.5,2717.9,2.44709191]
[1752085382950,4.27757619,2718.6,2718.0,3.2078]
[1752085383154,3.53691,2718.5,2718.0,3.2078]
[1752085383457,43.6013,2718.5,2718.3,0.73564]
[1752085383749,44.5812,2718.5,2718.4,0.73563]
[1752085384054,45.31681,2718.5,2718.0,3.2078]
[1752085384255,45.31681,2718.5,2718.3,0.73564]
[1752085384451,3.29767619,2718.4,2718.3,0.73564]
[1752085384652,3.29767619,2718.4,2718.0,3.2078]
[1752085384653,3.29767619,2718.4,2718.2,0.73567]
[1752085384857,2.8013,2718.4,2718.0,3.2078]
[1752085385057,2.8013,2718.4,2718.3,0.73565]
[1752085385355,3.53694,2718.4,2718.2,0.73568]
[1752085385553,3.53694,2718.4,2718.1,0.73569]
[1752085385853,3.53694,2718.4,2718.2,0.73568]
[1752085386249,3.53695,2718.4,2718.2,0.73568]
[1752085386456,0.73565,2718.3,2718.1,0.73569]
[1752085386953,0.73567,2718.3,2718.1,0.7357]
[1752085387155,0.73568,2718.2,2718.1,0.7357]
[1752085387757,0.73567,2718.3,2718.2,0.73568]
[1752085388051,0.73568,2718.2,2718.0,3.2078]
[1752085388253,0.73568,2718.2,2718.0,3.94352]
[1752085388452,3.8025,2718.4,2718.0,3.94352]
[1752085388453,0.73571,2718.1,2718.0,3.94352]
[1752085388653,0.7358,2717.8,2717.7,3.2078]
[1752085388859,0.73578,2717.9,2717.7,3.2078]
[1752085389353,0.73572,2718.1,2717.9,0.73576]
[1752085389548,31.16322,2718.2,2717.7,6.8804]
[1752085389754,1.8397,2717.5,2717.2,0.00551663]
[1752085389950,30.3182,2717.7,2717.2,0.00551663]
[1752085390153,0.73592,2717.3,2717.2,0.74145663]
[1752085390357,0.73592,2717.3,2717.2,0.00551663]
[1752085390663,32.1588,2717.7,2717.2,0.95461663]
[1752085390853,0.73586,2717.6,2717.4,3.2078]
[1752085391053,0.73587,2717.5,2717.4,3.94369]
[1752085391253,2.8418,2717.7,2717.4,4.1569]
[1752085391454,4.70968,2718.1,2717.4,6.60399191]
[1752085391659,0.73578,2717.9,2717.4,8.44372191]
[1752085391855,0.73578,2717.9,2717.7,0.7358]
[1752085392055,0.73577,2717.9,2717.7,3.9436]
[1752085392254,7.0508,2718.3,2717.7,6.60399191]
[1752085392456,0.73572,2718.1,2717.7,6.60399191]
[1752085392653,0.7357,2718.2,2718.0,0.73572]
[1752085392858,30.02368,2718.3,2718.2,0.73568]
[1752085393058,0.73571,2718.1,2718.0,5.65489191]
[1752085393257,0.73571,2718.1,2718.0,0.73572]
[1752085393556,0.73576,2718.0,2717.9,0.73576]
[1752085393749,0.73577,2717.9,2717.8,0.73578]
[1752085394253,0.73578,2717.9,2717.8,0.73577]
[1752085394457,29.272,2718.2,2717.9,0.73574]
[1752085394656,29.272,2718.2,2717.8,0.73577]
[1752085394657,0.73575,2718.0,2717.8,0.73577]
[1752085394858,0.73575,2718.0,2717.9,0.73576]
[1752085395050,0.73573,2718.1,2718.0,0.73574]
[1752085395248,30.00673,2718.1,2718.0,0.73574]
[1752085395452,0.73571,2718.1,2718.0,0.73572]
[1752085395854,0.73578,2717.9,2717.8,0.73578]
[1752085396060,0.73579,2717.8,2717.7,3.94361]
[1752085396254,2.7181,2718.1,2717.7,3.2078]
[1752085396460,0.73576,2717.9,2717.8,0.73577]
[1752085397058,0.73579,2717.8,2717.7,3.94361]
[1752085397254,6.5896,2718.1,2717.8,0.73578]
[1752085397460,7.42769,2718.1,2717.7,3.2078]
[1752085397661,0.73579,2717.8,2717.7,3.94362]
[1752085397857,30.97399,2717.8,2717.7,3.2078]
[1752085398062,0.73582,2717.7,2717.5,0.73586]
[1752085398359,0.73584,2717.6,2717.5,0.73586]
[1752085398560,0.73584,2717.6,2717.4,0.73588]
[1752085398762,2.9752,2717.7,2717.3,3.2078]
[1752085399161,0.73586,2717.6,2717.4,0.73588]
[1752085399367,0.7359,2717.4,2717.3,3.2078]
[1752085400262,0.7359,2717.4,2716.6,4.78571849]
[1752085400263,1.83983,2717.3,2716.6,4.78571849]
[1752085400563,1.83983,2717.3,2716.3,3.2078]
[1752085400564,0.7361,2716.7,2716.3,3.2078]
[1752085400762,0.7361,2716.7,2716.3,6.1739]
[1752085401161,0.73612,2716.6,2716.3,6.1739]
[1752085401362,0.73612,2716.6,2716.3,6.91007]
[1752085401665,0.7361,2716.7,2716.5,0.73614]
[1752085401865,0.7361,2716.7,2716.3,6.1739]
[1752085401866,29.212,2716.8,2716.4,3.18325191]
[1752085402066,0.73613,2716.6,2716.4,3.18325191]
[1752085402270,69.997,2717.0,2716.5,0.9491]
[1752085402464,0.7361,2716.7,2716.5,1.68524]
[1752085402860,0.73612,2716.6,2716.5,0.9491]
[1752085403065,0.73615,2716.5,2716.3,3.94398]
[1752085403468,0.73613,2716.6,2716.3,3.94398]
[1752085403663,0.73616,2716.5,2716.3,3.94399]
[1752085403865,45.42595,2717.0,2716.3,3.2078]
[1752085404268,2.8081,2716.9,2716.3,3.2078]
[1752085404464,2.8081,2716.9,2716.4,0.73615]
[1752085404671,0.73617,2716.4,2716.3,6.0398]
[1752085405773,0.73617,2716.4,2716.3,6.9889]
[1752085405975,0.73617,2716.4,2716.3,4.1569]
[1752085407478,0.73617,2716.4,2716.3,3.2078]
[1752085408073,4.53205,2716.7,2716.0,5.29289191]
[1752085408074,5.04811,2716.6,2716.0,3.2078]
[1752085408273,4.209,2716.7,2716.2,2.44709191]
[1752085408479,4.209,2716.7,2716.3,0.73619]
[1752085408779,0.73615,2716.5,2716.3,0.73618]
[1752085409377,4.209,2716.7,2716.1,8.10389191]
[1752085409576,1.84011,2716.9,2716.5,0.73613]
[1752085409776,0.73614,2716.6,2716.4,3.18324191]
[1752085410075,43.5859,2717.0,2716.4,2.44709191]
[1752085410282,0.73612,2716.6,2716.4,0.73615]
[1752085410575,0.73614,2716.5,2716.4,0.73615]
[1752085410779,0.73611,2716.7,2716.3,3.2078]
[1752085410974,0.73607,2716.8,2716.6,0.73612]
[1752085411180,0.73611,2716.7,2716.6,0.73611]
[1752085411383,5.9937,2717.0,2716.6,0.73612]
[1752085411675,0.73606,2716.9,2716.8,0.73605]
[1752085411876,0.73602,2717.0,2716.9,0.73603]
[1752085412079,7.98134,2717.3,2716.8,3.18313191]
[1752085412080,0.73603,2716.9,2716.8,3.18313191]
[1752085412276,3.2078,2717.3,2716.7,3.39619191]
[1752085412580,0.73599,2717.1,2717.0,0.736]
[1752085413075,2.80681663,2717.6,2717.0,2.44709191]
[1752085413280,3.54266663,2717.6,2717.3,2.44709191]
[1752085413481,2.80681663,2717.6,2717.5,0.73587]
[1752085414078,3.54265663,2717.6,2717.4,0.73589]
[1752085414481,2.80681663,2717.6,2717.5,0.73587]
[1752085414880,0.00551663,2717.6,2717.5,0.73587]
[1752085415082,0.00551663,2717.6,2717.5,1.68497]
[1752085416379,0.00551663,2717.6,2717.5,4.13206191]
[1752085416785,0.73564,2718.4,2718.2,0.73568]
[1752085417180,3.46215,2718.3,2718.1,0.73569]
[1752085417581,2.7265,2718.3,2718.2,0.73568]
[1752085419887,4.40726,2718.3,2718.1,0.73569]
[1752085420082,2.8194,2718.2,2717.9,3.2078]
[1752085420390,33.1839,2718.1,2717.6,0.73584]
[1752085420590,3.9436,2717.8,2717.6,0.73584]
[1752085420786,5.657,2717.7,2717.6,0.73584]
[1752085420982,47.4021,2717.7,2717.6,0.73584]
[1752085421478,48.13792,2717.7,2717.5,0.73585]
[1752085421682,48.13792,2717.7,2717.6,0.73584]
[1752085421884,48.13792,2717.7,2717.5,0.73586]
[1752085422281,47.4021,2717.7,2717.2,3.2078]
[1752085422589,47.4021,2717.7,2717.5,0.73585]
[1752085422782,47.4021,2717.7,2717.4,0.73588]
[1752085422987,0.73586,2717.6,2717.2,3.2078]
[1752085423188,4.44266,2717.6,2717.4,0.73588]
[1752085423990,3.7068,2717.6,2717.4,0.73588]
[1752085424191,0.73591,2717.4,2717.1,3.2078]
[1752085424391,2.7617,2717.6,2717.3,0.73593]
[1752085424592,2.7617,2717.6,2717.2,0.73593]
[1752085424593,0.73591,2717.4,2717.2,0.73593]
[1752085424788,0.73591,2717.4,2717.1,3.2078]
[1752085424789,0.73589,2717.5,2717.3,0.73593]
[1752085425292,0.6673,2717.4,2717.3,1.38413]
[1752085425691,0.73588,2717.5,2717.4,0.7359]
[1752085425891,0.73588,2717.5,2717.4,1.3841]
[1752085426092,1.40318,2717.5,2717.4,1.3841]
[1752085426986,0.7359,2717.4,2717.3,0.73591]
[1752085427284,1.4032,2717.4,2717.3,0.6482]
[1752085427489,1.4032,2717.4,2717.3,1.38413]
[1752085427888,0.6673,2717.4,2717.3,1.38413]
[1752085428388,1.4032,2717.4,2717.3,1.38413]
[1752085428687,3.49756,2717.6,2717.5,0.73587]
[1752085428890,0.73588,2717.5,2717.4,0.73587]
[1752085429091,0.6673,2717.5,2717.4,1.38407]
[1752085429390,1.40317,2717.5,2717.4,1.38407]
[1752085429589,0.6673,2717.5,2717.4,1.38407]
[1752085429790,0.73576,2718.0,2717.6,1.8396]
[1752085430089,3.2078,2718.1,2718.0,0.73574]
[1752085430290,3.8751,2718.1,2718.0,0.73574]
[1752085432397,4.61081,2718.1,2718.0,0.73574]
[1752085432697,7.44941,2718.1,2718.0,0.73574]
[1752085433293,7.44941,2718.1,2718.0,1.38394]
[1752085433593,7.44941,2718.1,2718.0,0.73574]
[1752085433793,0.7358,2717.8,2717.7,0.7358]
[1752085433989,0.7358,2717.8,2717.4,5.04754]
[1752085433990,0.73578,2717.9,2717.8,0.73578]
[1752085434791,0.73578,2717.9,2717.5,1.83968]
[1752085434998,0.7358,2717.8,2717.7,0.73581]
[1752085435191,0.73578,2717.9,2717.8,0.73579]
[1752085435498,1.40308,2717.9,2717.8,0.73579]
[1752085436799,0.73579,2717.8,2717.7,0.7358]
[1752085437000,1.40309,2717.8,2717.7,1.384]
[1752085438602,0.6673,2717.8,2717.7,1.384]
[1752085438804,1.40309,2717.8,2717.7,1.384]
[1752085439198,3.45189,2717.8,2717.4,3.2078]
[1752085439495,0.73586,2717.6,2717.5,0.73585]
[1752085439700,3.62084,2717.7,2717.6,0.73584]
[1752085439903,4.28814,2717.7,2717.6,1.38404]
[1752085440097,4.4974,2717.7,2717.4,0.73588]
[1752085440300,0.7359,2717.5,2717.4,0.73588]
[1752085440501,1.4032,2717.5,2717.4,0.73588]
[1752085440798,1.4032,2717.5,2717.2,1.83986]
[1752085440799,0.73598,2717.1,2717.0,0.00551663]
[1752085441001,0.9451,2718.2,2717.7,0.73582]
[1752085441201,0.7358,2717.8,2717.7,1.38402]
[1752085441601,0.73574,2718.0,2717.8,0.73579]
[1752085441800,0.6673,2717.9,2717.8,1.38399]
[1752085441995,5.9093,2718.1,2718.0,0.73574]
[1752085442202,2.7015,2718.1,2718.0,1.38394]
[1752085442399,4.10451,2718.1,2718.0,1.38394]
[1752085442807,5.04961,2718.1,2718.0,0.73574]
[1752085443001,6.15325,2718.1,2717.6,3.2078]
[1752085443304,0.73584,2717.7,2717.6,0.73583]
[1752085443500,3.2078,2717.9,2717.6,1.5909]
[1752085443706,3.2078,2717.9,2717.8,0.73579]
[1752085443907,3.2078,2717.9,2717.8,1.38399]
[1752085445914,0.73575,2718.0,2717.9,0.73576]
[1752085446098,0.73573,2718.1,2718.0,0.73574]
[1752085446303,0.7357,2718.2,2718.1,0.73569]
[1752085446505,0.73573,2718.1,2718.0,0.73572]
[1752085446704,1.40303,2718.1,2718.0,1.38392]
[1752085446898,44.74347,2718.3,2718.0,0.6482]
[1752085447104,44.74347,2718.3,2718.2,0.73568]
[1752085447305,44.74347,2718.3,2718.2,1.38388]
[1752085448805,44.0078,2718.3,2718.2,1.38388]
[1752085449212,44.0078,2718.3,2718.2,1.86972079]
[1752085450911,44.9198,2718.3,2718.2,1.86972079]
[1752085451411,4.1198,2718.3,2718.2,1.86972079]
[1752085451613,4.7349,2718.3,2718.2,1.86972079]
[1752085452312,8.24005,2718.3,2718.2,1.86972079]
[1752085452512,7.5044,2718.3,2718.2,1.86972079]
[1752085452817,8.24005,2718.3,2718.2,1.86972079]
[1752085453014,7.5044,2718.3,2718.2,1.86972079]
[1752085453211,8.24005,2718.3,2718.2,0.48584079]
[1752085453613,9.95149191,2718.3,2717.9,0.73574]
[1752085453816,0.73574,2718.0,2717.9,0.73574]
[1752085454016,30.07484,2718.0,2717.9,1.22343397]
[1752085454315,30.07484,2718.0,2717.9,0.48769397]
[1752085454316,30.98684,2718.0,2717.9,0.48769397]
[1752085455010,34.19464,2718.0,2717.9,0.48769397]
[1752085455216,0.73591,2717.4,2717.0,4.19211663]
[1752085455415,1.35101,2717.4,2717.3,0.6542]
[1752085455613,0.6151,2717.4,2717.3,1.39013]
[1752085455818,31.9098,2717.7,2717.3,1.633]
[1752085456019,0.73584,2717.6,2717.3,1.633]
[1752085456219,29.43784,2717.7,2717.5,0.73587]
[1752085456519,1.35094,2717.6,2717.5,1.39007]
[1752085456710,28.698,2717.8,2717.5,4.08009191]
[1752085456917,29.4338,2717.8,2717.7,0.73582]
[1752085457117,30.0489,2717.8,2717.7,1.39002]
[1752085457423,2.8714,2718.0,2717.9,0.73576]
[1752085457622,3.2078,2718.2,2718.0,0.73574]
[1752085457623,0.73573,2718.1,2718.0,0.73574]
[1752085457921,1.35081,2718.1,2718.0,0.73574]
[1752085458116,0.73575,2718.0,2717.9,0.73574]
[1752085458317,0.73576,2717.9,2717.8,0.73576]
[1752085458819,0.6151,2718.1,2717.7,1.633]
[1752085459022,1.35082,2718.1,2718.0,0.73574]
[1752085459216,0.73572,2718.1,2718.0,0.73574]
[1752085459416,1.35082,2718.1,2718.0,0.73574]
[1752085460017,0.6151,2718.1,2718.0,0.73574]
[1752085460219,1.35081,2718.1,2718.0,0.73574]
[1752085460516,0.73576,2718.0,2717.9,0.73575]
[1752085460720,1.35083,2718.1,2718.0,0.73574]
[1752085460921,0.73573,2718.1,2718.0,0.73574]
[1752085461111,0.73573,2718.1,2718.0,0.6542]
[1752085461112,1.35083,2718.1,2718.0,0.6542]
[1752085461314,1.35083,2718.1,2718.0,1.38994]
[1752085461511,1.35083,2718.1,2718.0,0.6542]
[1752085461912,0.73574,2718.0,2717.9,0.73574]
[1752085462113,0.73574,2718.0,2717.9,1.38994]
[1752085462720,1.35084,2718.0,2717.9,1.38994]
[1752085463119,0.6151,2718.0,2717.9,1.38994]
[1752085463515,0.73572,2718.1,2718.0,0.73574]
[1752085463721,1.35082,2718.1,2718.0,1.38994]
[1752085463916,31.8568,2718.2,2718.0,0.6542]
[1752085464122,1.35081,2718.1,2718.0,0.73572]
[1752085464425,1.35081,2718.1,2718.0,1.38992]
[1752085464926,0.6151,2718.1,2718.0,1.38992]
[1752085465624,3.2078,2718.2,2718.1,0.73571]
[1752085465820,33.18558,2718.2,2718.1,0.73571]
[1752085466121,33.18558,2718.2,2717.7,0.9788]
[1752085466326,0.73573,2718.1,2718.0,0.73572]
[1752085466520,0.6151,2718.1,2718.0,0.73572]
[1752085466722,0.6151,2718.1,2718.0,1.38992]
[1752085467124,1.35081,2718.1,2718.0,1.87085141]
[1752085467326,0.6151,2718.1,2718.0,1.87085141]
[1752085467621,9.26367619,2718.5,2718.1,0.73571]
[1752085467822,0.73564,2718.4,2718.3,0.73563]
[1752085468020,0.6151,2718.4,2718.3,1.38985]
[1752085468629,3.29767619,2718.8,2718.7,0.73555]
[1752085468926,4.38949283,2719.1,2719.0,0.73547]
[1752085468927,4.03311619,2719.1,2719.0,0.73547]
[1752085469126,33.24440883,2719.1,2719.0,0.73547]
[1752085469324,6.67946883,2719.1,2719.0,1.38967]
[1752085469522,5.28134648,2719.7,2719.0,1.38967]
[1752085469523,4.38949283,2719.6,2719.5,0.73533]
[1752085469724,3.2078,2719.9,2719.8,0.73525]
[1752085470027,6.70045,2720.2,2720.1,0.73517]
[1752085470227,1.83793,2720.1,2719.6,0.00551663]
[1752085470417,3.18237191,2719.7,2719.6,0.00551663]
[1752085470624,0.73545,2719.1,2718.3,6.0257]
[1752085470825,2.8921,2719.0,2718.4,0.47891528]
[1752085471025,2.8163,2718.9,2718.7,0.73555]
[1752085471224,2.8163,2718.9,2718.8,0.47891528]
[1752085471424,3.55179,2718.9,2718.8,0.47891528]
[1752085471822,0.73555,2718.7,2718.5,0.73559]
[1752085472026,0.73554,2718.8,2718.5,0.73559]
[1752085472330,0.7355,2718.9,2718.6,0.73557]
[1752085472528,0.73552,2718.8,2718.5,0.73559]
[1752085472931,0.73555,2718.7,2718.5,0.73559]
[1752085473133,0.73555,2718.7,2718.6,0.73557]
[1752085473334,0.73555,2718.7,2718.5,0.73559]
[1752085473534,0.912,2718.7,2718.2,2.6887]
[1752085473831,3.2078,2718.4,2717.7,3.2078]
[1752085474031,5.511,2718.3,2717.7,3.2078]
[1752085474232,3.2078,2718.1,2717.8,0.73579]
[1752085474433,1.64769,2718.2,2717.5,4.28678191]
[1752085474625,3.52737,2718.3,2718.1,0.7357]
[1752085474822,2.7917,2718.3,2718.2,0.73568]
[1752085475830,0.73559,2718.6,2718.1,2.44709191]
[1752085476227,0.73559,2718.6,2718.4,0.73562]
[1752085476228,3.47889,2718.6,2718.4,0.73562]
[1752085476528,44.27889,2718.6,2718.4,0.73562]
[1752085476726,44.27889,2718.6,2718.5,0.7356]
[1752085477025,4.38949283,2719.6,2718.5,4.1866]
[1752085477232,12.85138001,2719.9,2719.8,0.73525]
[1752085477233,2.7848,2719.9,2719.8,0.73525]
[1752085477430,3.2078,2720.0,2719.9,0.73522]
[1752085478234,43.5433,2720.1,2720.0,0.73519]
[1752085478429,40.8,2720.1,2720.0,0.73519]
[1752085478629,5.9511,2720.6,2720.5,0.73506]
[1752085478837,5.9511,2720.6,2720.0,0.9432]
[1752085478838,4.1691,2720.6,2719.7,3.89631663]
[1752085479040,3.2078,2720.3,2719.7,0.00551663]
[1752085479337,2.8301,2720.2,2719.8,0.73523]
[1752085479527,2.8301,2720.2,2719.7,0.00551663]
[1752085479732,0.73525,2719.8,2719.7,0.00551663]
[1752085479928,1.8382,2719.7,2718.8,3.2078]
[1752085480131,0.73544,2719.1,2718.8,3.94331]
[1752085480536,0.73549,2719.0,2718.8,3.2078]
[1752085480733,1.83854,2719.2,2718.7,0.9432]